Cogmind - Beta 10 @@@ ROGUE MODE // 2020.09.10 @ 22:37:26 Player: Mr.Manatee Result: Self-destructed Performance ------------- Evolutions (4) 2000 Regions Visited (12) 2400 Robots Destroyed (95) 475 Value Destroyed (4823) 4823 Prototype IDs (13) 260 Alien Tech Used (0) 0 Bonus (3690) 3690 TOTAL SCORE: 13648 Bonus ------- High Alert Combat Kills 545 Follower Combat Kills 345 Entered Garrisons 800 Used RIF Installer 2000 Cogmind --------- Core Integrity 726/850 Matter 285/300 Energy 310/310 System Corruption 4% Temperature Cool (199) Movement Treading (180) Ox1 Location -6/Lower Caves Parts ------- > --- POWER (1) -------- Cooled Deuterium Engine > --- PROPULSION (6) --- Light Treads Light Treads Flexi-carbon Leg Compact Wheel > --- UTILITY (6) ------ High-capacity Storage Unit Improved Melee Analysis Suite Improved Melee Analysis Suite Improved Melee Analysis Suite Advanced Focal Shield Relay Coupler [Grunt] (27) > --- WEAPON (2) ------- Improved Lightning Gun Great Axe > --- INVENTORY (12) --- Power Amplifier Thermal Generator Improved Cooling System Compact Battery (300) Improved ECM Suite Relay Coupler [NC] (33) Relay Coupler [Swarmer] (46) Relay Coupler [Swarmer] (45) Relay Coupler [Sentry] (23) Enhanced Autogun Heavy Missile Launcher Remote Datajack Peak State ------------ > --- POWER ------------ Cooled Deuterium Engine > --- PROPULSION ------- Gravmag System Gravmag System Gravmag System Improved Linear Gravjet Improved Linear Gravjet > --- UTILITY ---------- High-capacity Storage Unit Improved Signal Interpreter Improved Melee Analysis Suite Improved Melee Analysis Suite Relay Coupler [Grunt] > --- WEAPON ----------- Enhanced Autogun Great Axe > --- INVENTORY -------- Thermal Generator Improved Cooling System Compact Battery Improved ECM Suite Relay Coupler [NC] Relay Coupler [Swarmer] Relay Coupler [Swarmer] Relay Coupler [Sentry] Enhanced Autogun Enhanced Autogun Heavy Missile Launcher Remote Datajack [Rating: 57] Favorites ----------- Power Cooled Deuterium Engine Engine Cooled Deuterium Engine Power Core Nuclear Core Propulsion Gravmag System Treads Light Treads Leg Carbon-fiber Leg Wheel Compact Wheel Hover Unit Gravmag System Utility High-capacity Storage Unit Device Improved Heat Sink Storage High-capacity Storage Unit Processor Improved Melee Analysis Suite Hackware Hacking Suite Protection Improved Propulsion Shielding Weapon Great Axe Energy Gun Shock Rifle Ballistic Gun Heavy Assault Rifle Launcher Heavy Missile Launcher Special Weapon Remote Datajack Slashing Weapon Great Axe Build | -11 -10 -9 -8 -8 -7 -7 -7 -7 -6 -6 -6 -6 ------- Run | Scr Mat Mat Mat Gar Fac Gar Fac Gar Fac Gar Fac Low Slots Evolved 8 | . . 2 2 . 2 . . . 2 . . . Power . | . . . . . . . . . . . . . Propulsion 4 | . . . 2 . 1 . . . 1 . . . Utility 4 | . . 2 . . 1 . . . 1 . . . Weapon . | . . . . . . . . . . . . . Parts Attached 114 | 6 4 13 10 13 3 9 32 11 2 7 4 . Power 7 | 1 . 1 . 2 . 1 2 . . . . . Engine 5 | 1 . 1 . 1 . . 2 . . . . . Core 2 | . . . . 1 . 1 . . . . . . Reactor . | . . . . . . . . . . . . . Propulsion 48 | 2 2 6 8 4 1 3 15 1 . 3 3 . Treads 25 | . 2 6 8 4 1 2 . . . 1 1 . Leg 6 | 2 . . . . . 1 . . . 2 1 . Wheel 1 | . . . . . . . . . . . 1 . Hover 16 | . . . . . . . 15 1 . . . . Flight . | . . . . . . . . . . . . . Utility 26 | 1 2 2 1 2 1 . 12 2 1 2 . . Device 10 | . . . . 2 . . 6 . 1 1 . . Storage 3 | 1 1 1 . . . . . . . . . . Processor 4 | . . . . . . . 3 . . 1 . . Hackware 3 | . 1 . . . . . . 2 . . . . Protection 6 | . . 1 1 . 1 . 3 . . . . . Artifact . | . . . . . . . . . . . . . Weapon 33 | 2 . 4 1 5 1 5 3 8 1 2 1 . Energy Gun 15 | 2 . 2 . 4 . 3 1 . 1 1 1 . Energy Cannon . | . . . . . . . . . . . . . Ballistic Gun 7 | . . 2 1 . . 2 1 1 . . . . Ballistic Cannon . | . . . . . . . . . . . . . Launcher 3 | . . . . 1 . . . 1 . 1 . . Special Weapon 3 | . . . . . . . . 3 . . . . Impact Weapon . | . . . . . . . . . . . . . Slashing Weapon 5 | . . . . . 1 . 1 3 . . . . Piercing Weapon . | . . . . . . . . . . . . . Special Melee Weapon . | . . . . . . . . . . . . . Unidentified Prototypes 3 | . . . . . . . 3 . . . . . Parts Lost 30 | . . 2 1 4 . 12 2 4 . 1 4 . Power 1 | . . . . . . 1 . . . . . . Propulsion 16 | . . . . 2 . 5 1 4 . 1 3 . Utility 4 | . . . 1 1 . 2 . . . . . . Weapon 9 | . . 2 . 1 . 4 1 . . . 1 . Highest Loss Streak 11 | . . 2 1 3 . 11 1 1 . 1 4 . Average Slot Usage (%) 91 | . 99 91 100 99 100 84 98 86 66 79 80 86 Engine 6 | . 14 11 9 1 . . 5 7 6 6 6 6 Core 1 | . . . . 7 7 6 1 . . . . . Treads 13 | . 26 22 36 35 38 27 . . . . 10 13 Leg 1 | . 1 . . . . 2 . . . 10 4 6 Hover 13 | . . . . . . . 36 24 13 7 1 . Device 4 | . . . . 6 7 3 13 . . 3 6 6 Storage 11 | . 14 18 18 18 15 15 7 7 6 6 6 6 Processor 8 | . . . . . . . 8 23 20 22 20 20 Hackware 6 | . 13 11 9 9 7 7 . 6 6 6 6 6 Protection 3 | . . 6 9 2 7 3 6 . . . . . Energy Gun 8 | . 28 19 . 13 10 7 3 . 4 5 4 6 Ballistic Gun 4 | . . 1 18 3 . 6 5 6 1 . . . Slashing Weapon 3 | . . . . . 4 . 5 5 6 6 6 6 Naked Turns . | . . . . . . . . . . . . . Heaviest Build 83 | 13 41 81 81 83 81 81 79 53 52 54 55 55 Greatest Support 106 | 20 40 44 84 82 104 106 59 59 26 30 40 40 Greatest Overweight (x) 16 | 1 1 1 . 1 . 1 1 1 1 3 16 1 Average Overweight (x) . | . . 1 . . . . . . 1 1 1 1 Largest Inventory Capacity 20 | 6 12 20 20 20 20 20 20 12 12 12 12 12 Average Capacity 14 | 5 11 17 20 20 20 20 12 12 12 12 12 12 Most Carried 20 | 4 6 20 20 20 17 20 20 12 12 12 12 12 Average Carried 13 | 2 5 13 19 18 16 16 12 11 12 11 12 12 Final Capacity 20 | 6 12 20 20 20 20 20 12 12 12 12 12 12 Final Carried 20 | 4 6 19 20 17 17 20 11 12 12 12 12 12 Class Distribution -------------------- 36% | Mutant 27% | Hauler-Mutant 26% | Bothacker-Mutant 8% | Scavenger-Mutant Dominant Class ---------------- Mutant | -10/Materials Hauler-Mutant | -9/Materials Scavenger-Mutant | -8/Materials Hauler-Mutant | -8/Garrison Hauler-Mutant | -7/Factory Hauler-Mutant | -7/Garrison Mutant | -7/Factory Bothacker-Mutant | -7/Garrison Bothacker-Mutant | -6/Factory Bothacker-Mutant | -6/Garrison Bothacker-Mutant | -6/Factory Bothacker-Mutant | -6/Lower Caves Resources | -11 -10 -9 -8 -8 -7 -7 -7 -7 -6 -6 -6 -6 ----------- Run | Scr Mat Mat Mat Gar Fac Gar Fac Gar Fac Gar Fac Low Matter Collected 2293 | 260 17 293 357 293 . 194 335 291 . 223 30 . Remotely . | . . . . . . . . . . . . . Salvage Created 3987 | 92 31 607 621 443 . 588 707 424 . 287 187 . Parts 206 | 1 3 32 24 20 . 23 53 26 . 16 8 . Haulers Intercepted 3 | . . 1 1 . . . 1 . . . . . Recyclers Shooed 2 | . . 2 . . . . . . . . . . Parts Field Recycled . | . . . . . . . . . . . . . Retrieved Matter . | . . . . . . . . . . . . . Parts Self-Destructed . | . . . . . . . . . . . . . Prevented . | . . . . . . . . . . . . . Kills | -11 -10 -9 -8 -8 -7 -7 -7 -7 -6 -6 -6 -6 ------- Run | Scr Mat Mat Mat Gar Fac Gar Fac Gar Fac Gar Fac Low Combat Hostiles Destroyed 79 | . . 6 10 13 . 13 15 11 . 10 1 . Melee 24 | . . . . . . . 12 6 . 5 1 . Guns 40 | . . 6 10 8 . 11 3 2 . . . . AOE 12 | . . . . 3 . 1 . 3 . 5 . . Classes Destroyed 16 | 1 2 6 . 2 . . 3 2 . . . . Worker 1 | . . 1 . . . . . . . . . . Builder 1 | . . 1 . . . . . . . . . . Hauler 3 | . . 1 1 . . . 1 . . . . . Recycler 4 | 1 . 2 . . . . . . . . 1 . Mechanic 1 | . . . . . . . 1 . . . . . Operator 2 | . 1 1 . . . . . . . . . . Watcher 4 | . 1 . 1 . . . 2 . . . . . Swarmer 27 | . . . . 4 . 6 8 2 . 7 . . Grunt 26 | . . 1 5 4 . 7 4 5 . . . . Brawler 1 | . . 1 . . . . . . . . . . Duelist 2 | . . . . . . . . 1 . 1 . . Sentry 17 | . . 4 5 4 . . . 2 . 1 1 . Specialist 1 | . . . . . . . . 1 . . . . Hunter 1 | . . . . . . . 1 . . . . . Programmer 3 | . . . . . . . 2 . . 1 . . Behemoth 1 | . . . . 1 . . . . . . . . Best Kill Streak 6 | 1 1 3 4 4 . 5 3 6 . 6 2 . Combat Bots Only 6 | . . 1 4 4 . 5 3 6 . 6 1 . Max Kills in Single Turn 3 | 1 1 3 1 1 . 2 1 2 . 3 1 . Gunslinging 1 | . . . . . . 1 . . . . . . Exploded 3 | . . . . 1 . 1 . 2 . 3 . . Melee 1 | . . . . . . . 1 1 . 1 1 . Uniques/NPCs Destroyed . | . . . . . . . . . . . . . Combat | -11 -10 -9 -8 -8 -7 -7 -7 -7 -6 -6 -6 -6 -------- Run | Scr Mat Mat Mat Gar Fac Gar Fac Gar Fac Gar Fac Low Damage Taken 5619 | . . 407 578 1005 15 1441 1065 526 78 378 126 . Core 818 | . . 48 60 113 . 190 152 131 19 78 27 . Absorbed by Shields 411 | . . . . . . . . 328 . 83 . . Core Remaining (%) 77 | 100 100 88 . 68 . . . 32 . . . . Volleys Fired 215 | 4 3 43 42 42 . 41 11 21 . 8 . . Largest 2 | 1 2 2 2 2 . 2 2 1 . 1 . . Hottest 100 | 40 90 96 46 100 . 100 46 39 . 75 . . Shots Fired 378 | 4 5 79 84 76 . 80 21 21 . 8 . . Gun 352 | 4 5 79 84 68 . 80 21 8 . 3 . . Cannon . | . . . . . . . . . . . . . Launcher 16 | . . . . 8 . . . 3 . 5 . . Special 10 | . . . . . . . . 10 . . . . Kinetic 173 | . . 5 84 34 . 22 20 8 . . . . Thermal 42 | . 2 36 . . . . 1 . . 3 . . Explosive 16 | . . . . 8 . . . 3 . 5 . . Electromagnetic 137 | 4 3 38 . 34 . 58 . . . . . . Robot Hit Streak 41 | 1 3 39 41 16 . 17 5 5 . 7 . . Robot Miss Streak 5 | 1 1 3 2 5 . 4 2 5 . 1 . . Penetration Max . | . . . . . . . . . . . . . Secondary Targets 7 | . . 1 2 1 . 3 . . . . . . Max Gunslinging Chain 1 | . . 1 1 1 . 1 . . . . . . Shots Hit Robots 327 | 2 2 61 70 50 . 59 35 29 3 11 5 . Core Hits 153 | 2 2 19 23 26 . 26 23 15 . 15 2 . Critical Hits 5 | . . . 3 . . 1 1 . . . . . Critical Kills 2 | . . . 1 . . . 1 . . . . . Critical Parts Destroyed 3 | . . . 2 . . 1 . . . . . . Melee Attacks 126 | . . . . . 6 . 81 21 5 8 5 . Impact . | . . . . . . . . . . . . . Slashing 126 | . . . . . 6 . 81 21 5 8 5 . Piercing . | . . . . . . . . . . . . . Sneak Attacks 5 | . . . . . . . 2 . 1 1 1 . Combat Hostiles 1 | . . . . . . . . . . 1 . . Follow-up Attacks . | . . . . . . . . . . . . . Damage Inflicted 8272 | 42 53 971 996 1251 . 1063 1318 1233 203 834 308 . Guns 3966 | 42 53 793 996 703 . 1011 217 86 . 65 . . Cannons . | . . . . . . . . . . . . . Explosions 1714 | . . 177 . 548 . 52 . 504 . 433 . . Melee 2591 | . . . . . . . 1101 643 203 336 308 . Ramming 1 | . . 1 . . . . . . . . . . Kinetic 1817 | . . 78 996 258 . 201 198 86 . . . . Thermal 653 | . 13 504 . . . 52 19 . . 65 . . Explosive 1485 | . . . . 548 . . . 504 . 433 . . Electromagnetic 1725 | 42 40 388 . 445 . 810 . . . . . . Impact . | . . . . . . . . . . . . . Slashing 2591 | . . . . . . . 1101 643 203 336 308 . Piercing . | . . . . . . . . . . . . . Highest Corruption 4 | . . 2 . . . . 3 3 2 4 4 4 Average Corruption 3 | . . 2 . . . . 2 3 2 3 4 4 Corruption Purged . | . . . . . . . . . . . . . Effects 59 | . . 6 . . . . 15 16 1 16 4 1 Message Errors 15 | . . 2 . . . . 4 2 . 5 2 . Matter Fused 17 | . . . . . . . 6 5 . 5 1 . Heat Flow Errors 9 | . . 1 . . . . 1 4 1 1 . 1 Energy Discharges 6 | . . 1 . . . . 2 2 . 1 . . Data Loss (minor) 8 | . . 1 . . . . 1 2 . 3 1 . Targeting Errors 4 | . . 1 . . . . 1 1 . 1 . . Overload Shots . | . . . . . . . . . . . . . Overflow Damage 70 | . . . . 5 . . 55 10 . . . . Projectiles . | . . . . . . . . . . . . . Explosions 5 | . . . . 5 . . . . . . . . Melee 65 | . . . . . . . 55 10 . . . . Knockbacks . | . . . . . . . . . . . . . Impact . | . . . . . . . . . . . . . Kinetic . | . . . . . . . . . . . . . Secondary . | . . . . . . . . . . . . . Self-Inflicted Damage 70 | . . . . 56 . . . . . 14 . . Shots 3 | . . . . 2 . . . . . 1 . . Rammed 3 | . . 3 . . . . . . . . . . Targets Rammed 3 | . . 3 . . . . . . . . . . Kicked . | . . . . . . . . . . . . . Crushed . | . . . . . . . . . . . . . Highest Temperature 255 | . 30 255 8 132 . 2 132 249 170 84 . . Average Temperature 65 | . 18 73 8 49 . 2 38 83 89 23 . . Received Heat Transfer 1277 | . . 117 306 234 9 198 120 172 36 31 54 . Siege Activations . | . . . . . . . . . . . . . Robots Corrupted 2 | . . . . 1 . 1 . . . . . . Combat Hostiles 2 | . . . . 1 . 1 . . . . . . Parts Fried 11 | . . . . 3 . 5 . . . 3 . . Impact Corruptions . | . . . . . . . . . . . . . Robots Melted . | . . . . . . . . . . . . . Combat Hostiles . | . . . . . . . . . . . . . Parts Melted 3 | . 1 2 . . . . . . . . . . Heat Transferred 1412 | . 37 1138 . . . 50 37 . . 150 . . Parts Sabotaged . | . . . . . . . . . . . . . Parts Stolen . | . . . . . . . . . . . . . Parts Stripped . | . . . . . . . . . . . . . Power Chain Reactions 4 | . . 3 . . . 1 . . . . . . Missiles Intercepted . | . . . . . . . . . . . . . Alert | -11 -10 -9 -8 -8 -7 -7 -7 -7 -6 -6 -6 -6 ------- Run | Scr Mat Mat Mat Gar Fac Gar Fac Gar Fac Gar Fac Low Peak Influence 1256 | 5 97 212 364 514 286 421 974 1256 674 788 451 . Initial 659 | . 3 . . 106 269 200 220 636 659 471 413 . Average 440 | 1 62 76 154 377 276 316 462 995 659 642 432 . Maximum Alert Level 4 | . . 1 1 2 1 2 3 4 2 3 2 . Low Security (%) 24 | 100 100 93 71 15 . 1 . . . . . . Level 1 26 | . . 6 28 20 100 80 57 . . . . . Level 2 28 | . . . . 63 . 17 21 21 100 56 100 . Level 3 16 | . . . . . . . 21 48 . 43 . . Level 4 4 | . . . . . . . . 30 . . . . Level 5 . | . . . . . . . . . . . . . High Security . | . . . . . . . . . . . . . Max Security . | . . . . . . . . . . . . . Squads Dispatched 12 | . 1 3 3 . 1 . 2 . 2 . . . Investigation 5 | . 1 1 1 . 1 . 1 . . . . . Extermination 1 | . . . . . . . 1 . . . . . Reinforcement 3 | . . 2 . . . . . . 1 . . . Assault . | . . . . . . . . . . . . . Garrison 3 | . . . 2 . . . . . 1 . . . Intercept . | . . . . . . . . . . . . . Construction Impeded . | . . . . . . . . . . . . . Haulers Reinforced . | . . . . . . . . . . . . . Stealth | -11 -10 -9 -8 -8 -7 -7 -7 -7 -6 -6 -6 -6 --------- Run | Scr Mat Mat Mat Gar Fac Gar Fac Gar Fac Gar Fac Low Distress Signals 4 | . 1 2 . . . . 1 . . . . . Communications Jammed 6 | . . . . . . . 6 . . . . . Distress Signals . | . . . . . . . . . . . . . Times Spotted 170 | . 5 16 11 16 3 21 49 31 5 11 2 . Peak Tracking Total 9 | . 2 3 4 5 3 9 6 5 4 5 1 . Tactical Retreats 21 | . 1 2 1 2 . 6 8 1 . . . . Traps | -11 -10 -9 -8 -8 -7 -7 -7 -7 -6 -6 -6 -6 ------- Run | Scr Mat Mat Mat Gar Fac Gar Fac Gar Fac Gar Fac Low Traps Triggered 24 | . . 1 1 3 . . 5 4 1 7 2 . Indirectly . | . . . . . . . . . . . . . Trap Hack Attempts . | . . . . . . . . . . . . . Triggered . | . . . . . . . . . . . . . Disarmed . | . . . . . . . . . . . . . Reprogrammed . | . . . . . . . . . . . . . Reused . | . . . . . . . . . . . . . Traps Extracted . | . . . . . . . . . . . . . Installed . | . . . . . . . . . . . . . Triggered . | . . . . . . . . . . . . . Machines | -11 -10 -9 -8 -8 -7 -7 -7 -7 -6 -6 -6 -6 ---------- Run | Scr Mat Mat Mat Gar Fac Gar Fac Gar Fac Gar Fac Low Machines Disabled 12 | . 1 2 2 1 . 1 . 4 . 1 . . Max in Single Turn 1 | . 1 1 1 1 . 1 . 1 . 1 . . Garrison Access 3 | . . . . . . . 3 . . . . . Garrison Relay 7 | . . . . 1 . 1 . 4 . 1 . . Machines Sabotaged . | . . . . . . . . . . . . . Garrisons Compromised . | . . . . . . . . . . . . . Overloaded Fab Kills . | . . . . . . . . . . . . . Fab Network Shutdowns 1 | . . . . . . . 1 . . . . . Hacking | -11 -10 -9 -8 -8 -7 -7 -7 -7 -6 -6 -6 -6 --------- Run | Scr Mat Mat Mat Gar Fac Gar Fac Gar Fac Gar Fac Low Machines Accessed 37 | . 4 3 3 . 2 . 21 . 2 . 2 . Terminals 15 | . 4 2 2 . 1 . 5 . 1 . . . Fabricators 2 | . . . . . . . 2 . . . . . Repair Stations 7 | . . 1 . . . . 5 . . . 1 . Recycling Units 1 | . . . . . . . 1 . . . . . Scanalyzers 5 | . . . . . . . 4 . . . 1 . Garrison Access 7 | . . . 1 . 1 . 4 . 1 . . . Total Hacks 87 | . 14 8 8 . 4 . 42 . 3 . 8 . Successful 52 | . 11 5 2 . 2 . 26 . 1 . 5 . Failed 35 | . 3 3 6 . 2 . 16 . 2 . 3 . Catastrophic 5 | . . 1 . . . . 3 . 1 . . . Database Lockouts . | . . . . . . . . . . . . . Manual 25 | . 9 4 2 . 2 . 6 . 2 . . . Terminals 40 | . 14 4 7 . 3 . 10 . 2 . . . Fabricators 3 | . . . . . . . 3 . . . . . Repair Stations 23 | . . 4 . . . . 16 . . . 3 . Recycling Units 1 | . . . . . . . 1 . . . . . Scanalyzers 13 | . . . . . . . 8 . . . 5 . Garrison Access 7 | . . . 1 . 1 . 4 . 1 . . . Terminal Hacks 12 | . 6 1 1 . 1 . 3 . . . . . Part Schematic 2 | . . . . . . . 2 . . . . . Robot Analysis 3 | . 2 1 . . . . . . . . . . Prototype ID Bank 5 | . 3 . . . 1 . 1 . . . . . Machine Index 1 | . 1 . . . . . . . . . . . Terminal Index 1 | . . . 1 . . . . . . . . . Fabricator Hacks 2 | . . . . . . . 2 . . . . . Network Status 1 | . . . . . . . 1 . . . . . Build 1 | . . . . . . . 1 . . . . . Repair Station Hacks 14 | . . 4 . . . . 9 . . . 1 . Scan Component 9 | . . 2 . . . . 6 . . . 1 . Repair 5 | . . 2 . . . . 3 . . . . . Recycling Unit Hacks 1 | . . . . . . . 1 . . . . . Report Inventory 1 | . . . . . . . 1 . . . . . Scanalyzer 10 | . . . . . . . 6 . . . 4 . Insert Component 5 | . . . . . . . 3 . . . 2 . Analyze 5 | . . . . . . . 3 . . . 2 . Garrison Access Hacks 7 | . . . 1 . 1 . 4 . 1 . . . Unlock Access 4 | . . . 1 . 1 . 1 . 1 . . . Seal Access 3 | . . . . . . . 3 . . . . . Unauthorized Hacks 6 | . 5 . . . . . 1 . . . . . Terminals 5 | . 5 . . . . . . . . . . . Track 1 | . 1 . . . . . . . . . . . Assimilate 1 | . 1 . . . . . . . . . . . Botnet 3 | . 3 . . . . . . . . . . . Fabricators 1 | . . . . . . . 1 . . . . . Report 1 | . . . . . . . 1 . . . . . Repair Stations . | . . . . . . . . . . . . . Recycling Units . | . . . . . . . . . . . . . Scanalyzers . | . . . . . . . . . . . . . Garrison Access . | . . . . . . . . . . . . . Data Cores Recovered . | . . . . . . . . . . . . . Used . | . . . . . . . . . . . . . Hacking Detections 30 | . 4 3 3 . 1 . 16 . 1 . 2 . Full Trace Events 7 | . 4 . 2 . 1 . . . . . . . Feedback Events . | . . . . . . . . . . . . . Feedback Blocked . | . . . . . . . . . . . . . Robot Schematics Acquired . | . . . . . . . . . . . . . Robots Built . | . . . . . . . . . . . . . Matter . | . . . . . . . . . . . . . Time . | . . . . . . . . . . . . . Total Robot Build Rating . | . . . . . . . . . . . . . Part Schematics Acquired 6 | . . . . . . . 4 . . . 2 . Parts Built 2 | . . . . . . . 2 . . . . . Matter 234 | . . . . . . . 234 . . . . . Time 58 | . . . . . . . 58 . . . . . Total Part Build Rating 14 | . . . . . . . 14 . . . . . Parts Repaired 5 | . . 2 . . . . 3 . . . . . Time 185 | . . 58 . . . . 127 . . . . . Parts Recycled . | . . . . . . . . . . . . . Recycled Matter . | . . . . . . . . . . . . . Retrieved Matter . | . . . . . . . . . . . . . Retrieved Components . | . . . . . . . . . . . . . Parts Scanalyzed 4 | . . . . . . . 2 . . . 2 . Part Schematics Acquired 4 | . . . . . . . 2 . . . 2 . Parts Damaged 1 | . . . . . . . . . . . 1 . Bothacking | -11 -10 -9 -8 -8 -7 -7 -7 -7 -6 -6 -6 -6 ------------ Run | Scr Mat Mat Mat Gar Fac Gar Fac Gar Fac Gar Fac Low Used RIF Installer 4 | . . . . 1 . 1 . 1 . 1 . . Command Fork 1 | . . . . . . 1 . . . . . . Structural Interface 1 | . . . . . . . . 1 . . . . Autoassimilate 1 | . . . . . . . . . . 1 . . Robots Hacked 3 | . . . . . . . . 3 . . . . Non-combat . | . . . . . . . . . . . . . Combat 3 | . . . . . . . . 3 . . . . Robot Hacks Applied 4 | . . . . . . . . 4 . . . . amplify_resonance 1 | . . . . . . . . 1 . . . . go_dormant 1 | . . . . . . . . 1 . . . . overwrite_iff 2 | . . . . . . . . 2 . . . . Relay Couplers Released 29 | . . . . 4 . 5 . 16 . 4 . . Machine Destruction 29 | . . . . 4 . 5 . 16 . 4 . . Attached 2 | . . . . . . . . 2 . . . . Robots Rewired 6 | . . . . . . . . 6 . . . . Allies Hacked . | . . . . . . . . . . . . . Hacks Repelled . | . . . . . . . . . . . . . Allies | -11 -10 -9 -8 -8 -7 -7 -7 -7 -6 -6 -6 -6 -------- Run | Scr Mat Mat Mat Gar Fac Gar Fac Gar Fac Gar Fac Low Total Allies 11 | . 1 . . . . . . 10 . . . . Largest Group 6 | . 1 1 . . . . . 6 2 2 . . Highest-Rated Group 134 | . 10 10 . . . . . 134 60 60 . . Highest-Rated Ally 30 | . 10 10 . . . . . 30 30 30 . . Total Orders 1 | . . . . . . . . 1 . . . . GUARD 1 | . . . . . . . . 1 . . . . Ally Attacks 78 | . . . . . . . . 68 2 8 . . Total Damage 1367 | . . . . . . . . 1031 71 265 . . Kills 11 | . . . . . . . . 9 . 2 . . Allies Corrupted . | . . . . . . . . . . . . . Allies Melted . | . . . . . . . . . . . . . Intel | -11 -10 -9 -8 -8 -7 -7 -7 -7 -6 -6 -6 -6 ------- Run | Scr Mat Mat Mat Gar Fac Gar Fac Gar Fac Gar Fac Low Robot Analysis Total 3 | . 2 1 . . . . . . . . . . Derelict Logs Recovered . | . . . . . . . . . . . . . Drone Launches . | . . . . . . . . . . . . . Drone Recoveries . | . . . . . . . . . . . . . Exploration | -11 -10 -9 -8 -8 -7 -7 -7 -7 -6 -6 -6 -6 ------------- Run | Scr Mat Mat Mat Gar Fac Gar Fac Gar Fac Gar Fac Low Turns Passed 6839 | 85 427 812 420 695 73 554 1682 921 258 678 230 4 Spaces Moved 5005 | 58 221 312 175 347 34 247 2103 790 204 403 109 2 Core 15 | 13 . . . . . . . . . . 2 . Treads 1424 | . 207 312 175 347 34 247 18 . . 6 76 2 Legs 384 | 45 14 . . . . . . . . 298 27 . Wheels 4 | . . . . . . . . . . . 4 . Hover 3178 | . . . . . . . 2085 790 204 99 . . Flight . | . . . . . . . . . . . . . Fastest Speed 36 | 50 120 165 152 156 154 151 36 36 116 116 130 180 Average Speed 100 | 110 176 175 152 156 154 159 48 90 116 143 183 180 Slowest Speed 850 | 120 180 180 156 176 154 165 165 116 116 210 850 180 Overloaded Moves . | . . . . . . . . . . . . . Propulsion Burnouts . | . . . . . . . . . . . . . Robots Hopped . | . . . . . . . . . . . . . Cave-ins Triggered . | . . . . . . . . . . . . . Exploration Rate (%) 32 | 4 44 27 19 41 1 51 66 88 5 73 3 3 Regions Visited 12 Branch Regions 1 Pre-discovered Areas . | . . . . . . . . . . . . . Known Exits Taken 4 | . . . 1 . 1 . 1 . 1 . . . Unknown Exits Taken 4 | 1 1 1 . . . . . . . . 1 . Scrap Searched . | . . . . . . . . . . . . . Spaces Dug 60 | . . . . . 5 . 47 . . 8 . . Terrain Destroyed 153 | . . 10 . 43 5 6 47 16 . 26 . . Melee 53 | . . . . . 5 . 47 . . 1 . . Projectile . | . . . . . . . . . . . . . AOE 100 | . . 10 . 43 . 6 . 16 . 25 . . Terrain Rammed . | . . . . . . . . . . . . . Walls Destroyed . | . . . . . . . . . . . . . Machines Disabled . | . . . . . . . . . . . . . Actions | -11 -10 -9 -8 -8 -7 -7 -7 -7 -6 -6 -6 -6 --------- Run | Scr Mat Mat Mat Gar Fac Gar Fac Gar Fac Gar Fac Low Total 6246 | 72 252 495 248 422 45 328 2616 942 216 479 129 2 Wait 523 | 1 24 106 . 11 . 20 311 31 4 7 8 . Move 4997 | 57 220 311 175 346 34 246 2103 789 204 402 108 2 Hop . | . . . . . . . . . . . . . Pick Up 75 | 4 1 14 11 5 2 11 22 4 . 1 . . Fast Attach 36 | 6 1 3 . 1 . 1 13 . 2 5 4 . Attach 28 | . . 2 3 4 2 7 9 1 . . . . Detach 5 | . . . . . . . 3 . . 2 . . Swap 50 | . 3 8 7 8 1 1 10 10 . 2 . . Drop 66 | . . 5 10 5 . 1 40 2 1 2 . . Fire 215 | 4 3 43 42 42 . 41 11 21 . 8 . . Melee 126 | . . . . . 6 . 81 21 5 8 5 . Ram . | . . . . . . . . . . . . . Kick . | . . . . . . . . . . . . . Crush 3 | . . 3 . . . . . . . . . . Escape Stasis 108 | . . . . . . . 13 49 . 42 4 . Rewire 14 | . . . . . . . . 14 . . . . Trap . | . . . . . . . . . . . . . Miscellaneous . | . . . . . . . . . . . . . Route ------- -11/Scrapyard -10/Materials -9/Materials (discovered 2 exits: *Mat / [*Sto]) -8/Materials -8/Garrison (discovered 2 exits: *Fac x2) -7/Factory -7/Garrison -7/Factory (discovered 5 exits: *Fac x3 / [*Low] / Gar) -7/Garrison (discovered 3 exits: *Fac x3) -6/Factory -6/Garrison (discovered 2 exits: *Fac x2) -6/Factory -6/Lower Caves History --------- Turn | Location | Event 10 | -11/Scrapyard | Discovered new exit (range 15) 86 | -11/Scrapyard | Entered Materials 305 | -10/Materials | Build established: Mutant 486 | -10/Materials | Discovered new exit (range 16) 513 | -10/Materials | Entered another Materials area 513 | -9/Materials | Accompanied by 1 ally 513 | -9/Materials | Evolved 2 slots: Utility x2 1005 | -9/Materials | Repaired EM Pulse Gun 1114 | -9/Materials | Build established: Hauler-Mutant 1179 | -9/Materials | Repaired Hvy. Assault Rifle 1225 | -9/Materials | Discovered new exit (range 12) 1283 | -9/Materials | Discovered new exit (range 16) 1325 | -9/Materials | Entered another Materials area 1325 | -8/Materials | Evolved 2 slots: Propulsion x2 1582 | -8/Materials | Garrison activated, responded to threat 1745 | -8/Materials | Identified exit to Garrison 1745 | -8/Materials | Entered Garrison 1826 | -8/Garrison | Triggered checkpoint 1856 | -8/Garrison | Garrison Relay disabled 2040 | -8/Garrison | Triggered checkpoint 2075 | -8/Garrison | Spotted B-75 Beast 2103 | -8/Garrison | Destroyed B-75 Beast 2108 | -8/Garrison | Discovered new exit (range 13) 2129 | -8/Garrison | Lost 3 parts (2n1w) 2208 | -8/Garrison | Triggered checkpoint 2279 | -8/Garrison | Discovered new exit (range 10) 2303 | -8/Garrison | Installed Relay Interface Framework 2360 | -8/Garrison | Triggered checkpoint 2440 | -8/Garrison | Entered Factory 2440 | -7/Factory | Evolved 2 slots: Propulsion x1, Utility x1 2513 | -7/Factory | Identified exit to Garrison 2513 | -7/Factory | Entered Garrison 2568 | -7/Garrison | Triggered checkpoint 2684 | -7/Garrison | Triggered checkpoint 2768 | -7/Garrison | Triggered checkpoint 2852 | -7/Garrison | Lost 11 parts (1p4n2u4w) 2901 | -7/Garrison | Discovered new exit (range 10) 2930 | -7/Garrison | Expanded RIF knowledge: Command Fork 2975 | -7/Garrison | Garrison Relay disabled 3067 | -7/Garrison | Entered Factory 3237 | -7/Factory | Discovered new exit (range 11) 3554 | -7/Factory | Build established: Mutant 3581 | -7/Factory | Repaired Missile Launcher 3627 | -7/Factory | Discovered new exit (range 11) 3879 | -7/Factory | Repaired Imp. Propulsion Shielding 4213 | -7/Factory | Repaired Cld. Deuterium Engine 4394 | -7/Factory | Local fabrication network quarantined 4416 | -7/Factory | Fabricated Imp. Linear Gravjet (x2) 4433 | -7/Factory | Discovered new exit (range 15) 4438 | -7/Factory | Identified exit to Factory 4716 | -7/Factory | Discovered exit to Factory (range 15) 4749 | -7/Factory | Identified exit to Garrison 4749 | -7/Factory | Entered Garrison 4784 | -7/Garrison | Core integrity fell below 50% 4958 | -7/Garrison | Triggered checkpoint 4982 | -7/Garrison | Triggered checkpoint 5010 | -7/Garrison | Discovered exit to Factory (range 12) 5036 | -7/Garrison | Triggered checkpoint 5038 | -7/Garrison | Garrison Relay disabled 5132 | -7/Garrison | Triggered checkpoint 5169 | -7/Garrison | Garrison Relay disabled 5202 | -7/Garrison | Discovered exit to Factory (range 10) 5219 | -7/Garrison | Expanded RIF knowledge: Structural Interface 5304 | -7/Garrison | Triggered checkpoint 5347 | -7/Garrison | Build established: Bothacker-Mutant 5374 | -7/Garrison | Triggered checkpoint 5416 | -7/Garrison | Garrison Relay disabled 5606 | -7/Garrison | Garrison Relay disabled 5661 | -7/Garrison | Discovered exit to Factory (range 7) 5668 | -7/Garrison | Triggered checkpoint 5670 | -7/Garrison | Entered Factory 5670 | -6/Factory | Accompanied by 2 allies 5670 | -6/Factory | Evolved 2 slots: Propulsion x1, Utility x1 5923 | -6/Factory | Identified exit to Garrison 5927 | -6/Factory | Garrison activated, responded to threat 5928 | -6/Factory | Entered Garrison 5928 | -6/Garrison | Accompanied by 2 allies 6022 | -6/Garrison | Triggered checkpoint 6069 | -6/Garrison | P-60 Hacker assimilated allied Fighter 4a 6146 | -6/Garrison | Discovered new exit (range 14) 6165 | -6/Garrison | Identified exit to Factory 6176 | -6/Garrison | Expanded RIF knowledge: Autoassimilate 6400 | -6/Garrison | Spotted B-75 Beast 6489 | -6/Garrison | Garrison Relay disabled 6492 | -6/Garrison | Triggered checkpoint 6594 | -6/Garrison | Discovered exit to Factory (range 5) 6606 | -6/Garrison | Entered Factory 6690 | -6/Factory | Lost 4 parts (3n1w) 6762 | -6/Factory | Discovered new exit (range 4) 6836 | -6/Factory | Entered Lower Caves 6840 | -6/Lower Caves | Self-destructed Last Messages --------------- 06733_ Triggered Stasis Trap. 06733_ A bubble of rippling energy engulfs the area. 06733_ Field strength at 70. 06735_ Field strength at 40. 06736_ Field strength at 10. 06737_ Stasis field depleted. 06753_ Acquired Unknown Leg. 06753_ Identified Flexi-carbon Leg. 06757_ Triggered Stasis Trap. 06757_ A bubble of rippling energy engulfs the area. 06757_ Field strength at 70. 06758_ Field strength at 40. 06759_ Field strength at 10. 06760_ Stasis field depleted. 06762_ EXIT=FOUND 06766_ KIFJREANYU8Q